[Event "Austrian Bundesliga 2023-24"]
[Site "Austria"]
[Date "2024.03.23"]
[Round "10.28"]
[White "Perunovic, Milos"]
[Black "Hess, Max"]
[Result "1-0"]
[ECO "C49"]
[WhiteElo "2535"]
[BlackElo "2392"]
[Annotator "TA"]
[PlyCount "83"]
[EventDate "2023.10.21"]
[EventType "team-tourn"]
[EventCountry "AUT"]
[SourceTitle "playchess.com"]
[Source "ChessBase"]
[SourceQuality "1"]
[TimeControl "40/5400+30:1800+30"]

{[%evp 15,83,14,18,23,16,15,23,16,17,17,32,21,27,29,57,0,0,0,49,52,47,25,29,20,17,21,28,20,29,22,23,14,20,24,20,14,29,10,25,11,87,89,93,85,280,272,276,274,278,286,286,286,286,285,320,317,387,385,508,500,513,493,527,516,571,574,639,618,679,637]} 1. e4 {[%emt 0:00:10]} e5 {[%emt 0:00:06]} 2. Nf3 {[%emt 0:00:25]} Nc6 {[%emt 0:00:06]} 3. Bb5 {[%emt 0:01:11]} Nf6 {[%emt 0:00:14]} 4. Nc3 {[%emt 0:06:34]} Bb4 {[%emt 0:00:20]} 5. O-O {[%emt 0:00:13]} O-O {[%emt 0:00:07]} 6. d3 {[%emt 0:00:16]} d6 {[%emt 0:00:39]} 7. Ne2 {[%emt 0:03:27]} Ne7 {[%emt 0:00:32]} 8. c3 {[%emt 0:00:57]} Ba5 {[%emt 0:00:07]} 9. Ng3 {[%emt 0:00:05]} c6 {[%emt 0:00:24]} 10. Ba4 {[%emt 0:00:06]} Ng6 {[%emt 0:00:17]} 11. Re1 {[%emt 0:04:07] White has an edge.} Bb6 {[%emt 0:03:09]} 12. h3 {[%emt 0:08:04]} h6 {[%emt 0:03:56]} 13. d4 {[%emt 0:00:44]} Re8 {[%emt 0:07:09]} 14. Bc2 {[%emt 0:00:55]} Nh7 {[%emt 0:08:39][%cal Bf6h7,Bh7g5,Bg5f3][%mdl 32]} 15. Nf5 {[%emt 0:18:00]} ({White should try} 15. a3 $14) 15... exd4 $11 {[%emt 0:26:11]} 16. N3xd4 {[%emt 0:14:21]} Nh4 {[%emt 0:09:46]} (16... Nf6 $11 {might be stronger.}) 17. Nxh4 $14 {[%emt 0:08:30]} Qxh4 {[%emt 0:00:06]} 18. Be3 {[%emt 0:00:06]} Ng5 {[%emt 0:08:01]} 19. Nf3 {[%emt 0:13:17]} Nxf3+ {[%emt 0:00:54]} 20. Qxf3 {[%emt 0:00:11]} Bxe3 {[%emt 0:00:33]} 21. Qxe3 {[%emt 0:04:12]} Bf5 {[%emt 0:11:54]} 22. Qd2 {[%emt 0:07:11]} Bg6 {[%emt 0:00:23]} (22... Bxe4 $2 23. g3 Qxh3 24. Rxe4 (24. Bxe4 Qg4 $18) 24... Rxe4 25. Bxe4 $18) 23. f4 {[%emt 0:00:54][%cal Bf2f4,Bf4f5][%mdl 32]} Rad8 {[%emt 0:02:15]} 24. f5 {[%emt 0:01:15]} Bh7 {[%emt 0:00:35]} 25. Rad1 {[%emt 0:00:37]} Kf8 {[%emt 0:03:39][%cal Bg8f8,Bf8e7,Be7f6,Bf6f5][%mdl 32]} 26. Re3 {[%emt 0:02:16][%cal Be1e3,Be3d3,Bd3d2][%mdl 32]} Qf4 {[%emt 0:02:53]} 27. Rd3 $36 {[%emt 0:01:47][%mdl 2048] White is pushing.} Qxd2 {[%emt 0:02:30]} (27... Rxe4 $11 28. f6 (28. Rxd6 Re1+ 29. Qxe1 Rxd6 $11) 28... Kg8 (28... gxf6 29. Rxd6 Rxd6 30. Qxd6+ Qxd6 31. Rxd6 $14) 29. Qxf4 Rxf4 30. Rxd6 Rxd6 31. Bxh7+ Kxh7 32. Rxd6 Rxf6) 28. R3xd2 $16 {[%emt 0:00:04]} Ke7 {[%emt 0:00:41] [#]} 29. e5 $1 {[%emt 0:00:10] White is more active.} dxe5 $2 {[%emt 0:05:52] [#] This move loses the game for Black.} (29... f6 $16) 30. f6+ $1 $18 {[%emt 0:01:30][%mdl 512]} Kxf6 {[%emt 0:00:06]} 31. Rxd8 {[%emt 0:00:06]} ({Less strong is} 31. Bxh7 Rxd2 32. Rxd2 g6 $14) 31... Rxd8 {[%emt 0:00:04]} 32. Rxd8 {[%emt 0:00:05]} (32. Bxh7 $2 {is the wrong capture.} Rxd1+ 33. Kf2 Rd2+ 34. Kf1 Rxb2 $19) ({Weaker is} 32. Rf1+ Ke6 33. Bxh7 g6 $17) 32... Bxc2 {[%emt 0:00:04][%mdl 4096] Endgame. KR-KB} 33. Rd7 {[%emt 0:00:05]} b5 {[%emt 0:02:02]} 34. Rd6+ {[%emt 0:00:31]} Kf5 {[%emt 0:00:11]} 35. Rxc6 {[%emt 0:01:46]} a5 {[%emt 0:00:03]} 36. c4 {[%emt 0:01:26]} bxc4 {[%emt 0:01:26]} 37. Rxc4 {[%emt 0:00:06] White is clearly winning.} Bd1 {[%emt 0:00:33]} 38. Kf2 {[%emt 0:00:48]} Ke6 {[%emt 0:01:28]} 39. Ke1 {[%emt 0:00:18]} Bh5 {[%emt 0:00:04]} 40. Ra4 {[%emt 0:00:00]} f5 {[%emt 0:00:00][%cal Bf7f5,Bf5f4][%mdl 32]} 41. Rxa5 {[%emt 0:00:22]} f4 {[%emt 0:00:34]} 42. Ra7 {[%emt 0:05:22] Weighted Error Value: White=0.05 (flawless) /Black=0.25 (precise) .  Loses game:     	---       	Black=1      Mistake:       	White=1     	Black=2      Inaccurate:     	---       	Black=2      OK:         	White=17    	Black=13     Best:        	White=1     	Black=2      Strong:       	White=1     	---} 1-0

[Event "Austrian Bundesliga 2023-24"]
[Site "Austria"]
[Date "2024.03.23"]
[Round "10.29"]
[White "Kruckenhauser, Arthur"]
[Black "Ftacnik, Lubomir"]
[Result "1/2-1/2"]
[ECO "B90"]
[WhiteElo "2355"]
[BlackElo "2453"]
[Annotator "RC"]
[PlyCount "78"]
[EventDate "2023.10.21"]
[EventType "team-tourn"]
[EventCountry "AUT"]
[SourceTitle "playchess.com"]
[Source "ChessBase"]
[SourceQuality "1"]
[TimeControl "40/5400+30:1800+30"]

1. e4 {[%emt 0:00:04]} c5 {[%emt 0:00:08]} 2. Nf3 {[%emt 0:00:13]} d6 {[%emt 0:00:10]} 3. d4 {[%emt 0:00:20]} cxd4 {[%emt 0:00:13]} 4. Nxd4 {[%emt 0:00:08]} Nf6 {[%emt 0:00:29]} 5. Nc3 {[%emt 0:00:09]} a6 {[%emt 0:00:21]} 6. Rg1 {[%emt 0:00:36]} h5 {[%emt 0:02:42]} 7. h3 {[%emt 0:00:42]} Nc6 {[%emt 0:02:37]} 8. Be3 {[%emt 0:06:12]} g6 {[%emt 0:23:46]} 9. Bc4 {[%emt 0:19:25]} Bd7 {[%emt 0:11:06]} 10. Nxc6 {[%emt 0:16:17]} Bxc6 {[%emt 0:03:06]} 11. Qf3 {[%emt 0:06:15]} Qa5 {[%emt 0:07:55]} 12. O-O-O {[%emt 0:04:23]} Bg7 {[%emt 0:00:31]} 13. g4 {[%emt 0:03:06]} hxg4 {[%emt 0:03:43]} 14. hxg4 {[%emt 0:00:17]} Rf8 {[%emt 0:00:03]} 15. Bd4 {[%emt 0:03:49]} Bh6+ {[%emt 0:08:38]} 16. Kb1 {[%emt 0:02:25]} Bg5 {[%emt 0:00:11]} 17. Qe2 {[%emt 0:11:00]} O-O-O {[%emt 0:15:36]} 18. Nd5 {[%emt 0:02:12]} Nxd5 {[%emt 0:12:20]} 19. exd5 {[%emt 0:00:38]} Bxd5 {[%emt 0:00:11]} 20. Bxd5 {[%emt 0:04:35]} Qxd5 {[%emt 0:00:02]} 21. Bb6 {[%emt 0:02:09]} Qe6 {[%emt 0:00:47]} 22. Qxe6+ {[%emt 0:01:59]} fxe6 {[%emt 0:00:02]} 23. Bxd8 {[%emt 0:00:06]} Kxd8 {[%emt 0:00:05]} 24. Rgf1 {[%emt 0:00:35]} e5 {[%emt 0:00:36]} 25. f3 {[%emt 0:01:44]} Kd7 {[%emt 0:02:06]} 26. Rde1 {[%emt 0:02:05]} Bh4 {[%emt 0:01:51]} 27. Re2 {[%emt 0:05:28]} b5 {[%emt 0:01:16]} 28. Kc1 {[%emt 0:00:17]} Ke6 {[%emt 0:00:33]} 29. Kd1 {[%emt 0:00:31]} Bg5 {[%emt 0:00:34]} 30. Ref2 {[%emt 0:04:40]} d5 {[%emt 0:00:38]} 31. Ke2 {[%emt 0:00:26]} Rc8 {[%emt 0:00:22]} 32. Kd3 {[%emt 0:00:27]} Rc4 {[%emt 0:00:41]} 33. c3 {[%emt 0:02:20]} e4+ {[%emt 0:00:54]} 34. fxe4 {[%emt 0:01:05]} dxe4+ {[%emt 0:00:02]} 35. Ke2 {[%emt 0:00:13]} b4 {[%emt 0:00:24]} 36. cxb4 {[%emt 0:00:49]} Rc2+ {[%emt 0:00:06]} 37. Kd1 {[%emt 0:00:06]} Rc1+ {[%emt 0:00:05]} 38. Ke2 {[%emt 0:00:03]} Rc2+ {[%emt 0:00:07]} 39. Kd1 {[%emt 0:00:06]} Rc1+ {[%emt 0:00:05]} 1/2-1/2

[Event "Austrian Bundesliga 2023-24"]
[Site "Austria"]
[Date "2024.03.23"]
[Round "10.30"]
[White "Borhy, Marcell"]
[Black "Ciolek, Andreas"]
[Result "1/2-1/2"]
[ECO "A06"]
[WhiteElo "2370"]
[BlackElo "2302"]
[Annotator "RC"]
[PlyCount "56"]
[EventDate "2023.10.21"]
[EventType "team-tourn"]
[EventCountry "AUT"]
[SourceTitle "playchess.com"]
[Source "ChessBase"]
[SourceQuality "1"]
[TimeControl "40/5400+30:1800+30"]

1. Nf3 {[%emt 0:00:03]} d5 {[%emt 0:00:11]} 2. g3 {[%emt 0:00:05]} Nf6 {[%emt 0:00:22]} 3. Bg2 {[%emt 0:00:05]} e6 {[%emt 0:00:14]} 4. O-O {[%emt 0:00:19]} Be7 {[%emt 0:00:09]} 5. c4 {[%emt 0:00:08]} O-O {[%emt 0:00:10]} 6. d4 {[%emt 0:00:09]} dxc4 {[%emt 0:00:06]} 7. Qc2 {[%emt 0:00:40]} b6 {[%emt 0:00:12]} 8. Ne5 {[%emt 0:04:17]} Qxd4 {[%emt 0:00:54]} 9. Bxa8 {[%emt 0:00:08]} Qxe5 {[%emt 0:00:09]} 10. Bf3 {[%emt 0:00:14]} Nd5 {[%emt 0:00:08]} 11. Qxc4 {[%emt 0:02:19]} Ba6 {[%emt 0:00:18]} 12. Qa4 {[%emt 0:04:08]} c5 {[%emt 0:00:09]} 13. Na3 {[%emt 0:02:01]} Qc7 {[%emt 0:00:47]} 14. Rd1 {[%emt 0:21:09]} Bf6 {[%emt 0:06:22]} 15. Rb1 {[%emt 0:03:58]} Rd8 {[%emt 0:16:42]} 16. Bxd5 {[%emt 0:13:32]} exd5 {[%emt 0:08:26]} 17. Rxd5 {[%emt 0:00:28]} g5 {[%emt 0:12:06]} 18. Rxg5+ {[%emt 0:11:32]} Kh8 {[%emt 0:07:57]} 19. Bf4 {[%emt 0:08:49]} Qc6 {[%emt 0:02:05]} 20. Qxc6 {[%emt 0:07:21]} Nxc6 {[%emt 0:00:46]} 21. Rf5 {[%emt 0:01:12]} Kg7 {[%emt 0:03:20]} 22. Bg5 {[%emt 0:02:53]} Bxg5 23. Rxg5+ {[%emt 0:00:01]} Kf6 {[%emt 0:01:03]} 24. Rg4 {[%emt 0:03:30]} Rd2 {[%emt 0:03:35]} 25. Rf4+ {[%emt 0:04:16]} Kg6 {[%emt 0:01:38]} 26. Rg4+ {[%emt 0:00:03]} Kf6 {[%emt 0:00:11]} 27. Rf4+ {[%emt 0:03:49]} Kg6 {[%emt 0:00:13]} 28. Rg4+ {[%emt 0:04:00]} Kf6 1/2-1/2

[Event "Austrian Bundesliga 2023-24"]
[Site "Austria"]
[Date "2024.03.23"]
[Round "10.31"]
[White "Donchenko, Alexander"]
[Black "Pechac, Jergus"]
[Result "1/2-1/2"]
[ECO "E04"]
[WhiteElo "2631"]
[BlackElo "2571"]
[Annotator "TA"]
[PlyCount "61"]
[EventDate "2023.10.21"]
[EventType "team-tourn"]
[EventCountry "AUT"]
[SourceTitle "playchess.com"]
[Source "ChessBase"]
[SourceQuality "1"]
[TimeControl "40/5400+30:1800+30"]

{[%evp 16,61,0,10,0,0,0,0,0,0,0,0,0,-7,0,0,0,-15,-2,-2,-5,-10,-9,12,-1,-6,0,0,0,-35,89,56,116,77,123,66,152,182,185,197,167,170,142,113,114,16,24,-35]} 1. d4 {[%emt 0:00:04]} Nf6 {[%emt 0:00:07]} 2. c4 {[%emt 0:00:10]} e6 {[%emt 0:00:06]} 3. Nf3 {[%emt 0:00:15]} d5 {[%emt 0:00:06]} 4. g3 {[%emt 0:00:09]} dxc4 {[%emt 0:00:06]} 5. Bg2 {[%emt 0:00:17]} c6 {[%emt 0:00:06]} 6. O-O {[%emt 0:01:01]} b5 {[%emt 0:00:05]} 7. a4 {[%emt 0:00:54] E04: Open Catalan: 5 Nf3.} Bb7 {[%emt 0:00:09]} 8. Ne5 {[%emt 0:00:28]} a6 {[%emt 0:00:07]} 9. b3 {[%emt 0:00:41]} cxb3 {[%emt 0:00:06]} 10. Qxb3 $1 {[%emt 0:00:07] 10.Qxb3 is better than 10.Bb2.} Qxd4 {[%emt 0:00:05]} 11. Bb2 {[%emt 0:00:20]} Qb4 {[%emt 0:00:06]} 12. Qc2 {[%emt 0:00:33]} Qc5 {[%emt 0:00:06]} 13. Qd3 {[%emt 0:00:36]} (13. Qxc5 {simplifies} Bxc5 14. Rc1 Nbd7 15. Nd3) 13... Be7 {[%emt 0:00:07]} 14. Nd2 {[%emt 0:00:25]} Qb6 {[%emt 0:00:08]} 15. Ne4 {[%emt 0:00:44]} Nd5 {[%emt 0:00:05]} 16. h4 {[%emt 0:00:34]} c5 {[%emt 0:00:04]} 17. Ng5 {[%emt 0:01:02]} c4 $146 {[%emt 0:00:06]} ({Predecessor:} 17... f6 18. a5 Qc7 19. Nxe6 Qd6 20. Nxg7+ Kf8 21. Nf5 Qe6 22. Qe4 fxe5 23. Bxe5 Kf7 24. Bxh8 Qxe4 25. Bxe4 Nd7 26. Rad1 Rxh8 27. Bxd5+ Bxd5 28. Rxd5 Nf6 29. Nxe7 {1-0 Esipenko,A (2680)-Kacharava,N (2531) EU-ch 23rd Vrnjacka Banja 2023 (5)}) 18. Qc2 {[%emt 0:00:42]} Nb4 {[%emt 0:00:06]} 19. Qb1 $1 {[%emt 0:00:34]} Bxg2 {[%emt 0:00:07]} 20. Kxg2 {[%emt 0:00:07]} f6 {[%emt 0:00:04]} 21. Nef3 {[%emt 0:50:47]} (21. Qe4 $5 Nd5 22. Nef3 fxg5 23. Bxg7 $11) 21... Nd7 {[%emt 0:00:06]} (21... fxg5 22. Bxg7 Rg8 (22... g4 23. Ne5 $16) 23. Qxh7 Rxg7 24. Qxg7 $18) 22. Qe4 {[%emt 0:13:35]} Rb8 {[%emt 0:31:30]} (22... Rc8 $1 $15 23. Nxe6 Kf7 24. Nxg7 Qc6 25. Qxc6 Nxc6 26. axb5 axb5) 23. Nxe6 $16 {[%emt 0:01:21]} (23. Nxh7 $2 f5 24. Qb1 Rxh7 $19) 23... Nc5 {[%emt 0:02:20]} (23... Kf7 $14 24. Qf5 (24. Nxg7 Qc6 $11) 24... g6 25. Neg5+ Ke8) 24. Nxg7+ $16 {[%emt 0:03:36]} Kf7 {[%emt 0:02:26]} 25. Ng5+ {[%emt 0:04:41]} (25. Qg4 $6 Rhg8 26. Qh5+ (26. axb5 Qxb5 27. Ng5+ Kxg7 $11) 26... Kxg7 $11) 25... fxg5 {[%emt 0:00:47] [#]} (25... Kxg7 26. Qxe7+ Kg6 27. Qf7+ Kf5 28. Qh5 (28. Nxh7 Qb7+ 29. Qxb7 Rxb7 $16) (28. e4+ Nxe4 29. Nxe4 Rb7 $18) 28... Qb7+ 29. e4+) (25... Kf8 $1 $14 26. N7e6+ (26. Nxh7+ Kf7 $11) 26... Nxe6 27. Nxe6+ Kf7 28. Ng5+ fxg5 29. axb5 Qxb5) 26. Qf3+ $1 $16 {[%emt 0:00:26]} (26. Qf5+ Kg8 27. axb5 Rf8 $11) 26... Bf6 {[%emt 0:06:28]} 27. hxg5 {[%emt 0:00:05]} Qc6 {[%emt 0:02:53]} 28. Bxf6 {[%emt 0:01:24]} (28. gxf6 Qxf3+ 29. exf3 Nbd3 30. axb5 Nxb2 31. bxa6 Kxf6 32. Nh5+ Kf7 $17) 28... Qxf3+ {[%emt 0:00:34]} (28... bxa4 $2 {too greedy.} 29. Qxc6 (29. e4 Qxe4 30. Nf5 Qxf3+ 31. Kxf3 Ke6 $16) 29... Nxc6 30. Nf5 $18) 29. exf3 {[%emt 0:00:05]} Nd5 {[%emt 0:00:30] [#]} 30. axb5 {[%emt 0:03:49]} ({White has to play} 30. Be5 $1 $16 {And now Rh1 would win.} Ra8 31. Nf5) 30... Nxf6 $11 {[%emt 0:00:23]} 31. bxa6 {[%emt 0:02:50]} (31. gxf6 $11 axb5 32. Rh1) 1/2-1/2

[Event "Austrian Bundesliga 2023-24"]
[Site "Austria"]
[Date "2024.03.23"]
[Round "10.32"]
[White "Zilka, Stepan"]
[Black "Bluebaum, Matthias"]
[Result "1/2-1/2"]
[ECO "C44"]
[WhiteElo "2589"]
[BlackElo "2655"]
[Annotator "TA"]
[PlyCount "61"]
[EventDate "2023.10.21"]
[EventType "team-tourn"]
[EventCountry "AUT"]
[SourceTitle "playchess.com"]
[Source "ChessBase"]
[SourceQuality "1"]
[TimeControl "40/5400+30:1800+30"]

{[%evp 17,61,0,0,6,0,0,0,0,0,0,0,0,0,0,0,0,0,0,2,0,1,2,5,5,20,3,11,-9,0,0,0,0,29,20,42,8,12,4,20,7,44,0,0,8,9,0]} 1. e4 {[%emt 0:00:07]} e5 {[%emt 0:00:06]} 2. Nf3 {[%emt 0:00:06]} Nc6 {[%emt 0:00:12]} 3. d4 {[%emt 0:00:06]} exd4 {[%emt 0:00:11]} 4. Nxd4 {[%emt 0:00:07]} Nf6 {[%emt 0:00:28]} 5. Nc3 {[%emt 0:00:07]} Bb4 {[%emt 0:00:41]} 6. Nxc6 {[%emt 0:00:09]} bxc6 {[%emt 0:00:05]} 7. Bd3 {[%emt 0:00:08]} d5 {[%emt 0:00:21]} 8. exd5 {[%emt 0:00:13]} O-O {[%emt 0:00:30]} 9. O-O {[%emt 0:00:06]} cxd5 {[%emt 0:00:03]} 10. h3 {[%emt 0:01:50] Pariert Bg4.} c6 {[%emt 0:00:59]} 11. Qf3 {[%emt 0:00:17]} Bd6 {[%emt 0:01:26]} 12. Bf4 {[%emt 0:00:34]} Be6 {[%emt 0:01:53]} 13. Rfe1 {[%emt 0:02:11]} Re8 {[%emt 0:01:41]} 14. Rad1 {[%emt 0:05:00]} Qb8 {[%emt 0:00:18][%csl LRb2,LRf4]} 15. Bxd6 {[%emt 0:02:00]} Qxd6 {[%emt 0:00:09]} 16. b3 {[%emt 0:08:13]} Re7 {[%emt 0:09:09]} 17. Ne2 {[%emt 0:03:59]} Rae8 {[%emt 0:01:25]} 18. Qf4 {[%emt 0:01:47]} Qxf4 {[%emt 0:10:56]} 19. Nxf4 {[%emt 0:00:07]} Kf8 {[%emt 0:03:19][%cal Bg8f8,Bf8e7,Be7d8,Bd8c7][%mdl 32]} 20. c4 {[%emt 0:03:00]} Bd7 {[%emt 0:06:00]} 21. Rxe7 {[%emt 0:07:57]} Kxe7 {[%emt 0:00:05]} 22. c5 {[%emt 0:00:15]} Kd8 {[%emt 0:09:22]} 23. f3 {[%emt 0:04:42]} a5 {[%emt 0:04:24]} 24. Kf2 {[%emt 0:00:51]} Bc8 {[%emt 0:04:29]} 25. a3 {[%emt 0:01:39]} Kc7 {[%emt 0:05:52]} 26. Re1 {[%emt 0:03:44]} Be6 {[%emt 0:01:52]} 27. b4 {[%emt 0:04:12]} h6 {[%emt 0:11:21]} 28. Bg6 {[%emt 0:25:26] Droht Nxe6+.} Nd7 {[%emt 0:01:58]} 29. Bf5 {[%emt 0:05:52][%cal Rf5e6]} axb4 {[%emt 0:01:47]} 30. axb4 {[%emt 0:01:23]} Nf8 {[%emt 0:00:04]} 31. g4 {[%emt 0:03:49] Eine ausgeglichene Partie nicht ohne Feinheiten.   Gewichteter Fehlerwert: Weiß=0.07 (makellos) /Schwarz=0.05 (makellos) .  Ungenau:       	Weiß=2     	Schwarz=2     OK:         	Weiß=7     	Schwarz=11} 1/2-1/2

[Event "Austrian Bundesliga 2023-24"]
[Site "Austria"]
[Date "2024.03.23"]
[Round "10.33"]
[White "Svane, Rasmus"]
[Black "Hracek, Zbynek"]
[Result "1-0"]
[ECO "B22"]
[WhiteElo "2623"]
[BlackElo "2542"]
[Annotator "TA"]
[PlyCount "77"]
[EventDate "2023.10.21"]
[EventType "team-tourn"]
[EventCountry "AUT"]
[SourceTitle "playchess.com"]
[Source "ChessBase"]
[SourceQuality "1"]
[TimeControl "40/5400+30:1800+30"]

{[%evp 12,77,24,12,33,21,29,40,32,27,23,35,31,36,26,0,0,0,38,35,32,31,43,45,27,40,17,19,37,0,152,16,115,102,91,91,187,187,189,210,191,185,189,165,162,153,215,225,233,228,218,243,247,239,233,129,239,243,279,0,230,0,278,241,308,294,400,401]} 1. e4 {[%emt 0:00:02]} c5 {[%emt 0:00:51]} 2. c3 {[%emt 0:00:08]} e6 {[%emt 0:01:17]} 3. d4 {[%emt 0:01:50]} d5 {[%emt 0:01:05]} 4. exd5 {[%emt 0:04:09]} exd5 {[%emt 0:00:23]} 5. Nf3 {[%emt 0:00:07]} Nc6 {[%emt 0:00:10]} 6. Bb5 {[%emt 0:05:36]} Bd6 {[%emt 0:00:27]} 7. O-O {[%emt 0:03:26]} Nf6 {[%emt 0:03:02]} 8. dxc5 {[%emt 0:07:11]} Bxc5 {[%emt 0:00:18]} 9. Bg5 {[%emt 0:08:32]} Be6 {[%emt 0:01:50] Weiß steht etwas besser.} 10. Qa4 {[%emt 0:06:30]} Rc8 {[%emt 0:07:52]} 11. Nbd2 {[%emt 0:02:13]} O-O {[%emt 0:06:40]} 12. Nb3 {[%emt 0:02:01]} Bb6 {[%emt 0:02:10]} 13. Rad1 {[%emt 0:14:54]} h6 $1 {[%emt 0:01:36]} 14. Bh4 {[%emt 0:00:42]} a6 {[%emt 0:13:55]} (14... g5 $5 15. Bg3 Ne4 $11) 15. Bxc6 {[%emt 0:04:14]} bxc6 {[%emt 0:10:41]} 16. c4 {[%emt 0:04:15][%cal Bc3c4,Bc4c5][%mdl 32]} Bg4 {[%emt 0:13:57]} 17. c5 {[%emt 0:06:55][%cal Oh4f6] [#] Und jetzt Bxf6! wäre schön.} Bxf3 {[%emt 0:00:48]} 18. gxf3 {[%emt 0:00:07]} Bc7 {[%emt 0:00:03]} 19. Nd4 {[%emt 0:03:47]} (19. Qxc6 $2 Bxh2+ 20. Kxh2 Rxc6 $19) 19... Qd7 {[%emt 0:05:14]} 20. Bg3 {[%emt 0:04:41] Verhindert Be5.} (20. Qxc6 $2 Bxh2+ 21. Kxh2 Rxc6 $19) (20. Nxc6 $2 Bd8 $19) 20... Qh3 $2 {[%emt 0:04:10]} (20... Bd8 $11) 21. Qc2 {[%emt 0:03:23]} (21. Qxc6 $2 {verliert.} Bxg3 22. fxg3 Rxc6 $19) ({Viel schwächer ist} 21. Nxc6 Rfe8 $16) (21. Qxa6 $6 Nh5 22. Rfe1 (22. Nxc6 Nf4 23. Ne7+ Kh7 24. Bxf4 Bxf4 25. Qd3+ f5 26. Rfe1 Bxh2+ 27. Kh1 Bg3+ 28. Kg1 Qh2+ 29. Kf1 Qxf2#) 22... Ra8 $14 (22... Nf4 23. Qf1 $16)) ({Vorzuziehen ist} 21. Rfe1 $16) 21... g6 {[%emt 0:08:17]} (21... Bd8 $11) 22. Nxc6 $16 {[%emt 0:01:43]} Rfe8 {[%emt 0:00:28] [#] Pariert Ne7+. Weiss muss nun ...Bxg3 beachten.} 23. Nb4 {[%emt 0:00:46]} h5 {[%emt 0:13:08]} (23... Bxg3 $16 {war nötig.} 24. fxg3 d4) 24. Nxd5 $18 {[%emt 0:02:51]} Nxd5 {[%emt 0:00:09]} 25. Rxd5 {[%emt 0:00:05]} h4 {[%emt 0:00:12]} 26. Bxc7 {[%emt 0:00:12]} Rxc7 {[%emt 0:02:35]} 27. Qc3 {[%emt 0:02:21]} Qe6 {[%emt 0:01:41]} 28. Rd4 {[%emt 0:05:16] Re4 ist eine echte Drohung.} Qe5 {[%emt 0:00:18]} (28... Qf5 $16 {ist wohl besser.}) 29. b4 {[%emt 0:01:46]} ({Schwächer ist} 29. Rxh4 Qxc3 30. bxc3 Rxc5 $14) 29... h3 {[%emt 0:00:09] Droht stark ...Rd7.} 30. f4 {[%emt 0:00:31]} Qf5 {[%emt 0:01:20][%cal Oa6a5]} 31. Rd3 {[%emt 0:00:57]} Qxf4 {[%emt 0:00:30]} 32. Rxh3 $40 {[%emt 0:00:04][%mdl 128] Weiss riecht Blut.} Re5 {[%emt 0:00:07]} 33. Qf3 {[%emt 0:01:56]} (33. a3 $18) 33... Qg5+ {[%emt 0:00:59]} (33... Rg5+ $16 {war einen Versuch wert.} 34. Kh1 Qxf3+ 35. Rxf3 a5) 34. Rg3 {[%emt 0:00:51]} Qh4 {[%emt 0:00:26]} 35. Rh3 {[%emt 0:01:32]} Qg5+ {[%emt 0:00:07]} 36. Rg3 {[%emt 0:00:31]} Qh4 {[%emt 0:00:04]} 37. a3 {[%emt 0:01:13]} Kg7 {[%emt 0:01:21]} 38. Qc3 {[%emt 0:00:35]} f6 {[%emt 0:00:20]} 39. Qd3 {[%emt 0:00:43] Gewichteter Fehlerwert: Weiß=0.39/Schwarz=0.30.  Fehler:       	Weiß=2     	Schwarz=5     Ungenau:       	Weiß=2     	Schwarz=2     OK:         	Weiß=14    	Schwarz=12    Bester:       	Weiß=3     	Schwarz=2     Stark:        	---       	Schwarz=1} 1-0